bitfinex-derivatives/quotes_ETHF0:USTF0_20241023
["timestamp","ask_amount","ask_price","bid_price","bid_amount"]
[1729652436764,1.38,2613.2,2613.1,1.72464]
[1729652436970,0.34461,2613.3,2613.2,0.34462]
[1729652437161,3.2078,2613.7,2613.2,5.2064]
[1729652437361,3.2078,2614.0,2613.6,1.38]
[1729652437562,0.34455,2613.8,2613.7,1.2281]
[1729652438271,1.72455,2613.8,2613.7,1.57266]
[1729652438473,1.72455,2613.8,2613.7,1.2281]
[1729652438972,0.34457,2613.7,2613.3,4.5878]
[1729652439269,0.34457,2613.7,2613.4,2.5846]
[1729652439472,1.72457,2613.7,2613.6,0.34457]
[1729652439772,1.38,2613.7,2613.4,2.5846]
[1729652439974,1.72458,2613.6,2613.5,0.34458]
[1729652441976,1.38,2613.6,2613.5,0.34458]
[1729652442469,1.72457,2613.6,2613.5,0.34458]
[1729652443069,0.34457,2613.6,2613.5,0.34458]
[1729652444163,1.38,2613.7,2613.6,0.34457]
[1729652444164,0.34456,2613.7,2613.6,0.34457]
[1729652444476,4.5878,2614.1,2613.6,5.2064]
[1729652444672,3.2078,2614.1,2614.0,1.72452]
[1729652445678,3.2078,2614.1,2614.0,5.55012]
[1729652445975,3.2078,2614.4,2614.1,0.34451]
[1729652446273,4.978,2614.8,2614.3,1.38]
[1729652446465,4.978,2614.8,2614.5,1.38]
[1729652446466,0.34445,2614.6,2614.5,1.38]
[1729652446665,0.34445,2614.6,2614.4,2.2202]
[1729652446666,1.38,2614.6,2614.4,2.2202]
[1729652446878,0.34445,2614.5,2614.4,2.2202]
[1729652448576,1.72445,2614.5,2614.4,0.8402]
[1729652449787,1.72445,2614.5,2614.4,2.2202]
[1729652450077,0.34445,2614.5,2614.4,2.56467]
[1729652450276,0.34445,2614.6,2614.4,2.56466]
[1729652450481,0.34445,2614.6,2614.5,1.38]
[1729652450873,3.2078,2615.1,2614.8,0.34441]
[1729652451075,3.2078,2615.1,2614.9,1.38]
[1729652451076,1.38,2615.0,2614.9,1.38]
[1729652451270,0.34439,2615.0,2614.9,2.1995]
[1729652451474,1.72439,2615.0,2614.9,0.8195]
[1729652452177,0.34443,2614.7,2614.6,3.95584]
[1729652452376,0.34443,2614.7,2614.6,5.33584]
[1729652452691,0.34443,2614.7,2614.6,4.9914]
[1729652452978,1.72443,2614.7,2614.6,7.0326]
[1729652453167,1.72443,2614.7,2614.6,3.2078]
[1729652453572,0.34443,2614.7,2614.6,4.5878]
[1729652454278,0.34443,2614.7,2614.6,3.2078]
[1729652456682,0.34443,2614.7,2614.5,0.3891]
[1729652456878,0.75468,2615.1,2614.6,0.34444]
[1729652457181,0.75468,2615.1,2614.7,0.4091]
[1729652457182,0.3444,2615.0,2614.7,0.4091]
[1729652457479,0.4103,2615.1,2614.8,0.4242]
[1729652457672,0.3444,2615.0,2614.8,0.7686]
[1729652458082,0.3444,2615.0,2614.9,0.3444]
[1729652459179,0.3444,2615.0,2614.9,0.7379]
[1729652459383,0.3444,2615.0,2614.9,0.3935]
[1729652459687,0.3444,2614.9,2614.8,0.4242]
[1729652459985,0.3444,2614.9,2614.8,0.76861]
[1729652460279,0.3444,2614.9,2614.8,0.4242]
[1729652465691,0.3444,2614.9,2614.8,0.76861]
[1729652467391,0.34439,2615.0,2614.9,0.34439]
[1729652468388,0.4103,2615.1,2614.8,0.4242]
[1729652468591,0.3444,2614.9,2614.8,0.76861]
[1729652471686,0.4103,2615.1,2614.8,0.4242]
[1729652471894,0.34439,2615.0,2614.9,0.34439]
[1729652474282,0.34439,2615.0,2614.9,1.72439]
[1729652474687,0.34439,2615.0,2614.9,1.38]
[1729652477693,0.34439,2615.0,2614.9,1.8006]
[1729652490620,0.54569,2615.0,2614.9,1.8006]
[1729652491819,0.34439,2615.0,2614.9,1.8006]
[1729652495422,0.34439,2615.0,2614.9,2.145]
[1729652496524,0.34439,2615.0,2614.9,1.8006]
[1729652496723,0.34439,2615.0,2614.9,2.145]
[1729652497127,0.34439,2615.0,2614.9,1.8006]
[1729652497718,0.34439,2615.0,2614.9,2.145]
[1729652497919,0.34439,2615.0,2614.9,1.8006]
[1729652502929,0.34443,2614.7,2614.6,0.34443]
[1729652503232,0.34442,2614.8,2614.7,0.34442]
[1729652503531,0.34442,2614.8,2614.7,1.72442]
[1729652504320,0.34442,2614.8,2614.7,2.14152]
[1729652510439,0.34442,2614.8,2614.7,5.34932]
[1729652513235,0.34442,2614.8,2614.7,2.14152]
[1729652515335,5.54922,2614.8,2614.7,0.4171]
[1729652515540,0.34447,2614.4,2614.3,1.7843]
[1729652516739,0.34447,2614.4,2614.3,2.12878]
[1729652518139,2.13223,2614.7,2614.4,0.34446]
[1729652518140,0.34447,2614.5,2614.4,0.34446]
[1729652518335,0.34447,2614.5,2614.4,1.72446]
[1729652519637,0.4078,2614.7,2614.4,1.38]
[1729652519837,0.34445,2614.5,2614.4,0.34445]
[1729652520241,0.86098,2615.0,2614.4,3.8248]
[1729652520431,0.34445,2614.6,2614.5,0.34445]
[1729652520745,0.34444,2614.7,2614.6,0.34443]
[1729652520937,0.34442,2614.8,2614.7,0.34442]
[1729652521142,0.3962,2615.1,2614.7,2.1748]
[1729652521143,1.7762,2615.1,2614.7,2.1748]
[1729652521345,2.12057,2615.1,2615.0,1.38]
[1729652521744,5.94457,2615.1,2615.0,1.38]
[1729652522340,2.12057,2615.1,2615.0,1.38]
[1729652526451,0.34439,2615.0,2614.9,1.38]
[1729652539254,0.34437,2615.1,2614.9,5.204]
[1729652539458,0.34437,2615.2,2615.1,0.34437]
[1729652539658,0.34437,2615.2,2615.1,2.93087]
[1729652539864,0.4098,2615.6,2615.1,6.4105]
[1729652540053,0.34431,2615.6,2615.5,2.76]
[1729652540250,5.64997,2616.0,2615.6,0.3443]
[1729652540251,3.6221,2616.0,2615.6,0.3443]
[1729652540554,3.96636,2616.0,2615.9,1.38]
[1729652540758,5.34636,2616.0,2615.9,1.38]
[1729652540961,3.96636,2616.0,2615.9,1.38]
[1729652541461,3.55206,2616.0,2615.9,1.38]
[1729652541663,0.34424,2616.2,2616.0,0.34425]
[1729652541853,0.34424,2616.2,2616.1,1.72424]
[1729652542058,0.34424,2616.2,2616.1,1.38]
[1729652542256,4.5878,2616.6,2616.1,1.38]
[1729652542558,4.5878,2616.6,2616.1,0.34423]
[1729652542559,0.34422,2616.3,2616.1,0.34423]
[1729652542856,4.5878,2616.6,2616.0,0.4159]
[1729652542857,3.2078,2616.6,2616.0,0.4159]
[1729652543054,0.3442,2616.5,2616.3,0.34422]
[1729652543251,0.34419,2616.5,2616.4,0.4258]
[1729652543465,0.34419,2616.5,2616.4,1.8058]
[1729652544058,1.38,2616.5,2615.9,3.2078]
[1729652544262,1.38,2616.2,2616.1,1.38]
[1729652544464,4.5878,2616.3,2616.1,1.38]
[1729652544761,4.5878,2616.3,2615.9,0.4258]
[1729652544762,4.93202,2616.3,2616.2,1.38]
[1729652545452,8.75442,2616.3,2616.2,1.38]
[1729652545663,4.93202,2616.3,2616.2,1.38]
[1729652546964,0.34422,2616.3,2616.2,1.38]
[1729652547861,0.34421,2616.4,2616.2,1.72423]
[1729652548058,0.34421,2616.4,2616.3,2.1793]
[1729652549464,1.72421,2616.4,2616.3,0.39]
[1729652549662,0.34421,2616.4,2616.3,1.77]
[1729652550565,0.34421,2616.4,2616.3,3.15]
[1729652550768,0.34421,2616.4,2616.3,1.77]
[1729652550960,0.34421,2616.4,2616.3,2.1606]
[1729652555967,0.3442,2616.5,2616.3,3.88481]
[1729652556175,0.3442,2616.5,2616.4,1.7984]
[1729652556368,1.7943,2616.7,2616.2,3.2078]
[1729652556567,0.34419,2616.5,2616.4,1.38]
[1729652558366,0.34419,2616.5,2616.4,1.7892]
[1729652560770,0.34424,2616.1,2616.0,0.4184]
[1729652560972,0.34424,2616.1,2616.0,1.7984]
[1729652562572,0.34424,2616.1,2616.0,1.38]
[1729652568880,0.34427,2615.9,2615.8,0.3925]
[1729652569089,0.34427,2615.9,2615.8,1.7725]
[1729652569581,0.34427,2615.9,2615.8,1.38]
[1729652571676,1.72427,2615.9,2615.8,1.38]
[1729652571881,1.38,2615.9,2615.7,1.7892]
[1729652572173,1.72428,2615.8,2615.7,1.7892]
[1729652572573,0.34428,2615.8,2615.7,1.7892]
[1729652579483,0.34427,2616.0,2615.8,0.34428]
[1729652579683,0.34425,2616.1,2616.0,0.34425]
[1729652579884,0.34425,2616.1,2616.0,1.72425]
[1729652580683,0.34425,2616.1,2616.0,1.38]
[1729652580891,0.34426,2616.0,2615.9,0.34427]
[1729652581091,0.34428,2615.8,2615.7,3.2078]
[1729652581388,0.34428,2615.8,2615.7,4.93209]
[1729652581589,0.34428,2615.8,2615.7,8.75529]
[1729652581992,0.34428,2615.8,2615.7,8.75526]
[1729652582191,0.34428,2615.8,2615.7,4.93206]
[1729652582682,0.34428,2615.8,2615.7,4.5878]
[1729652582881,3.2078,2616.3,2615.7,8.411]
[1729652583083,0.34418,2616.3,2616.2,1.38]
[1729652583485,0.34418,2616.3,2616.2,2.1856]
[1729652584287,0.34417,2616.4,2616.3,0.34418]
[1729652584487,0.34417,2616.4,2616.3,1.72418]
[1729652584887,0.34417,2616.4,2616.3,3.10418]
[1729652585294,4.73521452,2616.5,2616.4,0.34417]
[1729652585495,4.73521452,2616.5,2616.4,1.38]
[1729652585693,4.73521452,2616.5,2616.4,1.72417]
[1729652585991,4.73521452,2616.5,2616.4,1.38]
[1729652586292,4.73521452,2616.5,2616.4,1.72417]
[1729652586489,4.73521452,2616.5,2616.4,1.38]
[1729652587493,4.73521452,2616.5,2616.4,1.72417]
[1729652587795,4.39105452,2616.5,2616.4,5.54577]
[1729652588094,0.34414,2616.7,2616.6,0.34414]
[1729652588291,0.34413,2616.7,2616.6,4.93194]
[1729652588792,0.34413,2616.7,2616.6,8.75353]
[1729652589092,4.64934249,2617.1,2617.0,1.38]
[1729652594395,6.02934249,2617.1,2617.0,1.38]
[1729652594594,6.02934249,2617.1,2616.8,0.3887]
[1729652594595,0.34409,2617.0,2616.9,1.38]
[1729652594788,0.72969,2617.0,2616.9,1.38]
[1729652597794,0.72969,2617.0,2616.9,1.8006]
[1729652599495,4.30526249,2617.1,2617.0,0.34409]
[1729652599801,4.30526249,2617.1,2617.0,1.72409]
[1729652600298,0.4122,2617.5,2617.2,0.34406]
[1729652600500,0.34404,2617.4,2617.3,0.8143]
[1729652600704,0.34404,2617.4,2617.3,1.2203]
[1729652601003,0.34404,2617.4,2617.3,2.6003]
[1729652602403,0.34404,2617.4,2617.3,1.2203]
[1729652604101,0.34404,2617.4,2617.3,4.2003]
[1729652605605,0.6277,2617.8,2617.5,0.34402]
[1729652605606,0.34398,2617.8,2617.5,0.34402]
[1729652605807,3.2078,2617.9,2617.3,8.0211]
[1729652605808,0.344,2617.7,2617.6,3.32401]
[1729652606007,0.344,2617.7,2617.6,2.98]
[1729652608303,0.344,2617.7,2617.6,3.324]
[1729652608501,0.34398,2617.9,2617.8,0.34398]
[1729652608699,0.34398,2617.9,2617.8,3.32398]
[1729652608910,0.34398,2617.9,2617.8,6.8]
[1729652609206,0.34398,2617.9,2617.8,7.6437]
[1729652609714,0.34398,2617.9,2617.8,7.98768]
[1729652610698,0.34397,2617.9,2617.8,7.98768]
[1729652610905,0.34397,2617.9,2617.8,7.6437]
[1729652611199,0.34397,2617.9,2617.8,0.8437]
[1729652611411,0.34397,2617.9,2617.8,4.6637]
[1729652611612,0.34398,2617.8,2617.7,3.2078]
[1729652613406,4.00284521,2618.1,2617.6,6.1878]
[1729652613606,0.34396,2618.0,2617.9,2.98]
[1729652620018,0.34396,2618.0,2617.9,6.1878]
[1729652620320,0.34396,2618.0,2617.9,6.9907]
[1729652620819,0.34396,2618.0,2617.9,3.7829]
[1729652621119,0.34396,2618.0,2617.9,6.9907]
[1729652621623,0.34396,2618.0,2617.9,3.7829]
[1729652622307,0.34396,2618.0,2617.9,2.1829]
[1729652622519,0.34396,2618.0,2617.9,3.5629]
[1729652622811,0.34396,2618.0,2617.9,7.11467]
[1729652623110,0.34396,2618.0,2617.9,6.7707]
[1729652625111,0.34396,2618.0,2617.9,7.11467]
[1729652625920,1.2557,2618.4,2617.9,6.7707]
[1729652626119,0.73981,2618.4,2618.3,1.38]
[1729652626415,4.85797342,2618.4,2618.3,1.38]
[1729652626620,8.67717342,2618.4,2618.3,1.38]
[1729652627217,4.85797342,2618.4,2618.3,1.38]
[1729652637924,4.51406342,2618.4,2618.1,0.4235]
[1729652638128,0.34396,2618.0,2617.9,4.0107]
[1729652638428,0.34396,2618.0,2617.9,7.1911]
[1729652639229,0.34396,2618.0,2617.9,3.9833]
[1729652639526,0.34396,2618.0,2617.9,5.8111]
[1729652639934,0.34396,2618.0,2617.9,7.1911]
[1729652640126,0.34396,2618.0,2617.9,5.8111]
[1729652641026,0.34396,2618.0,2617.9,7.1911]
[1729652641735,0.34396,2618.0,2617.9,3.9833]
[1729652642023,0.34396,2618.0,2617.9,7.1911]
[1729652642231,0.34396,2618.0,2617.9,5.8111]
[1729652643227,0.34396,2618.0,2617.9,7.1911]
[1729652644328,0.34396,2618.0,2617.9,5.8111]
[1729652644930,0.34396,2618.0,2617.9,7.1911]
[1729652648732,0.34396,2618.0,2617.9,5.8111]
[1729652648930,0.344,2617.7,2617.6,3.2078]
[1729652649133,0.344,2617.7,2617.6,4.5878]
[1729652649329,0.344,2617.7,2617.6,1.38]
[1729652652027,0.7874,2617.9,2617.6,1.38]
[1729652652028,0.39,2617.9,2617.6,1.38]
[1729652652227,0.73397,2617.9,2617.8,1.38]
[1729652652635,4.73349582,2617.9,2617.8,1.38]
[1729652660333,4.73349582,2617.9,2617.6,3.2078]
[1729652660334,0.344,2617.7,2617.6,3.2078]
[1729652660539,0.344,2617.7,2617.6,4.5878]
[1729652660737,4.5335647,2617.7,2617.6,4.5878]
[1729652662242,4.5335647,2617.7,2617.6,1.38]
[1729652670545,0.344,2617.7,2617.6,1.72401]
[1729652670934,0.344,2617.7,2617.6,1.38]
[1729652674145,0.344,2617.7,2617.6,4.5878]
[1729652675051,0.344,2617.7,2617.6,1.38]
[1729652675244,0.344,2617.7,2617.6,4.5878]
[1729652677749,0.344,2617.7,2617.6,1.38]
[1729652678145,0.344,2617.7,2617.6,4.5878]
[1729652679848,0.344,2617.7,2617.6,1.38]
[1729652680051,0.344,2617.7,2617.6,4.5878]
[1729652685947,0.344,2617.7,2617.6,1.38]
[1729652686155,0.344,2617.7,2617.6,4.5878]
[1729652690354,0.344,2617.7,2617.6,1.38]
[1729652690549,0.344,2617.7,2617.6,4.5878]
[1729652691352,0.344,2617.7,2617.6,1.38]
[1729652691552,0.344,2617.7,2617.6,4.5878]
[1729652693760,0.344,2617.7,2617.6,1.38]
[1729652694355,0.344,2617.7,2617.6,4.5878]
[1729652697565,0.344,2617.7,2617.6,1.38]
[1729652698153,0.344,2617.7,2617.6,4.5878]
[1729652698761,0.344,2617.7,2617.6,1.38]
[1729652698962,0.344,2617.7,2617.6,4.5878]
[1729652701868,0.344,2617.7,2617.6,4.93181]
[1729652702770,0.344,2617.7,2617.6,1.38]
[1729652702966,0.344,2617.7,2617.6,4.5878]
[1729652703567,0.344,2617.7,2617.6,3.2078]
[1729652703872,0.344,2617.7,2617.6,4.5878]
[1729652708471,0.344,2617.7,2617.6,1.38]
[1729652708679,0.344,2617.7,2617.6,4.5878]
[1729652711374,0.34401,2617.6,2617.5,0.3883]
[1729652711582,0.76931,2617.6,2617.5,1.7683]
[1729652711777,0.34401,2617.6,2617.5,1.7683]
[1729652712383,0.34401,2617.6,2617.5,2.11232]
[1729652712682,0.34401,2617.6,2617.5,1.7683]
[1729652713779,0.34401,2617.6,2617.5,1.38]
[1729652714174,1.2853,2617.7,2617.4,0.64213436]
[1729652714375,0.34401,2617.6,2617.5,1.38]
[1729652716874,0.34401,2617.6,2617.5,1.7764]
[1729652749007,0.34406,2617.2,2617.1,3.2078]
[1729652749218,0.34406,2617.2,2617.1,4.5878]
[1729652749397,9.58693968,2617.2,2617.1,3.2078]
[1729652749794,9.58693968,2617.2,2617.1,4.5878]
[1729652749795,8.61143968,2617.2,2617.1,4.5878]
[1729652752006,8.61143968,2617.2,2617.1,1.38]
[1729652760406,9.64737968,2617.2,2616.9,0.386]
[1729652760604,0.3441,2616.9,2616.8,3.2078]
[1729652760812,1.7241,2616.9,2616.8,3.2078]
[1729652761006,9.12574066,2616.9,2616.8,4.5878]
[1729652763605,10.50574066,2616.9,2616.8,4.5878]
[1729652769105,10.50574066,2616.9,2616.8,3.2078]
[1729652769709,9.12574066,2616.9,2616.8,4.5878]
[1729652769911,8.70974066,2616.9,2616.8,4.5878]
[1729652773307,8.70974066,2616.9,2616.8,1.38]
[1729652776215,0.34412,2616.8,2616.7,1.38]
[1729652776518,4.56463206,2616.8,2616.7,1.38]
[1729652780313,5.94463206,2616.8,2616.7,1.38]
[1729652783022,0.34406,2617.3,2617.1,0.34407]
[1729652783314,0.85993,2618.0,2617.2,4.5878]
[1729652783315,1.7684,2617.8,2617.2,4.5878]
[1729652783515,1.38,2617.3,2617.0,3.2078]
[1729652783723,1.38,2617.3,2617.0,1.38]
[1729652783724,0.34408,2617.1,2617.0,1.38]
[1729652783917,0.34408,2617.1,2617.0,4.5878]
[1729652784315,0.34408,2617.1,2617.0,3.2078]
[1729652784625,0.34409,2617.0,2616.9,1.38]
[1729652785129,4.76094911,2617.0,2616.9,1.38]
[1729652785628,5.79685911,2617.0,2616.8,1.38]
[1729652785813,5.79685911,2617.0,2616.6,3.2078]
[1729652785814,0.34413,2616.7,2616.6,3.2078]
[1729652786020,1.72413,2616.7,2616.6,3.2078]
[1729652786218,6.08909963,2616.7,2616.6,3.2078]
[1729652786617,6.08909963,2616.7,2616.6,3.6041]
[1729652789426,6.08909963,2616.7,2616.6,4.9841]
[1729652789829,6.08909963,2616.7,2616.6,3.6041]
[1729652790036,6.48249963,2616.7,2616.6,3.6041]
[1729652790527,6.48249963,2616.7,2616.6,4.9841]
[1729652791127,4.70909963,2616.7,2616.6,4.9841]
[1729652793025,5.10139963,2616.7,2616.6,4.9841]
[1729652793431,5.10139963,2616.7,2616.6,1.7763]
[1729652809734,0.34414,2616.6,2616.5,3.2078]
[1729652809934,1.18144,2616.6,2616.5,4.5878]
[1729652810140,5.20559175,2616.6,2616.5,4.5878]
[1729652811837,5.20559175,2616.6,2616.5,1.38]
[1729652812039,5.20559175,2616.6,2616.5,4.5878]
[1729652812641,5.20559175,2616.6,2616.5,1.38]
[1729652813140,5.20559175,2616.6,2616.5,4.5878]
[1729652814947,5.20559175,2616.6,2616.5,1.38]
[1729652815539,4.44635175,2616.6,2616.5,4.5878]
[1729652815743,3.2078,2618.1,2616.5,9.7894]
[1729652815744,0.3441,2617.0,2616.5,9.7894]
[1729652816044,0.3441,2617.0,2616.9,1.38]
[1729652816251,1.13159,2617.1,2616.9,1.38]
[1729652816458,4.29618264,2617.0,2616.9,2.1737]
[1729652816946,0.34406,2617.3,2617.1,0.34407]
[1729652817253,0.7979,2617.6,2617.2,4.5878]
[1729652817556,1.14191,2617.6,2617.5,1.38]
[1729652817942,5.17316286,2617.6,2617.5,1.38]
[1729652820851,6.55316286,2617.6,2617.5,1.38]
[1729652821445,6.55316286,2617.6,2617.3,3.2078]
[1729652821446,0.34404,2617.4,2617.3,3.2078]
[1729652821744,5.75331714,2617.4,2617.3,3.2078]
[1729652822143,5.40927714,2617.4,2617.2,1.38]
[1729652822350,2.56355,2617.3,2617.2,1.38]
[1729652822652,6.68777231,2617.3,2617.2,1.38]
[1729652824152,6.34372231,2617.3,2617.2,1.38]
[1729652824351,6.68777231,2617.3,2617.2,1.38]
[1729652824846,0.34406,2617.2,2617.1,1.8044]
[1729652825241,4.61506366,2617.2,2617.1,1.8044]
[1729652828648,4.27100366,2617.2,2617.1,2.14848]
[1729652828852,4.27100366,2617.2,2617.1,5.96928]
[1729652829150,0.4121,2617.6,2617.1,5.6252]
[1729652829151,0.34404,2617.4,2617.1,5.6252]
[1729652829353,0.34404,2617.4,2617.3,1.38]
[1729652829949,0.34404,2617.4,2617.3,4.5878]
[1729652830350,4.21242834,2617.5,2617.4,0.34404]
[1729652830552,0.3918,2617.8,2617.4,6.0008]
[1729652830858,0.34399,2617.8,2617.7,1.38]
[1729652831248,4.75842289,2617.8,2617.7,1.38]
[1729652834156,4.75842289,2617.8,2617.7,4.5878]
[1729652835353,4.75842289,2617.8,2617.7,1.38]
[1729652835554,4.75842289,2617.8,2617.7,4.5878]
[1729652839558,4.41443289,2617.8,2617.7,4.5878]
[1729652839759,0.8047,2618.1,2617.7,8.4078]
[1729652839760,0.34396,2618.0,2617.7,8.4078]
[1729652840063,4.07593373,2618.0,2617.9,1.72396]
[1729652840566,4.41989373,2618.0,2617.9,2.14946]
[1729652841059,1.72396,2618.0,2617.9,0.4255]
[1729652841262,0.34398,2617.8,2617.7,3.2078]
[1729652841460,0.34398,2617.8,2617.7,4.5878]
[1729652841964,0.74358,2617.8,2617.7,4.5878]
[1729652843060,0.74358,2617.8,2617.7,1.38]
[1729652843462,0.74358,2617.8,2617.7,4.5878]
[1729652844158,0.74358,2617.8,2617.7,8.7518]
[1729652844360,0.74358,2617.8,2617.7,8.4078]
[1729652844760,0.74358,2617.8,2617.7,8.7518]
[1729652845163,0.74358,2617.8,2617.7,4.5878]
[1729652845768,0.74358,2617.8,2617.7,3.2078]
[1729652845960,0.74358,2617.8,2617.7,4.5878]
[1729652846362,0.74358,2617.8,2617.7,4.9318]
[1729652846760,0.74358,2617.8,2617.7,4.5878]
[1729652851174,0.74358,2617.8,2617.7,1.38]
[1729652851571,0.74358,2617.8,2617.7,4.5878]
[1729652851872,0.74358,2617.8,2617.7,1.38]
[1729652852067,0.74358,2617.8,2617.7,4.5878]
[1729652854278,1.14578,2617.8,2617.7,4.5878]
[1729652855375,1.14578,2617.8,2617.7,1.38]
[1729652856174,1.14578,2617.8,2617.7,1.724]
[1729652856582,0.74358,2617.8,2617.7,1.38]
[1729652857477,0.74358,2617.8,2617.7,4.5878]
[1729652858478,0.74358,2617.8,2617.7,1.38]
[1729652858884,0.74358,2617.8,2617.7,4.5878]
[1729652860475,0.74358,2617.8,2617.7,1.38]
[1729652860678,0.74358,2617.8,2617.7,4.5878]
[1729652861981,0.74358,2617.8,2617.7,1.38]
[1729652862170,0.74358,2617.8,2617.7,4.5878]
[1729652863484,0.74358,2617.8,2617.7,1.38]
[1729652863983,0.74358,2617.8,2617.7,4.5878]
[1729652865876,0.3996,2617.8,2617.7,4.9318]
[1729652866178,0.4221,2618.1,2617.7,4.5878]
[1729652866375,0.76605,2618.1,2618.0,1.72396]
[1729652866576,0.34395,2618.1,2618.0,1.72396]
[1729652866777,4.65655238,2618.1,2618.0,1.72396]
[1729652868081,4.65655238,2618.1,2618.0,1.38]
[1729652880583,0.34397,2617.9,2617.8,3.2078]
[1729652880787,0.34397,2617.9,2617.8,4.5878]
[1729652883981,0.34397,2617.9,2617.8,1.38]
[1729652884192,0.34397,2617.9,2617.8,4.5878]
[1729652886390,0.34397,2617.9,2617.8,1.38]
[1729652886790,0.34397,2617.9,2617.8,4.5878]
[1729652887990,0.34397,2617.9,2617.8,1.38]
[1729652888591,0.34397,2617.9,2617.8,4.5878]
[1729652889694,0.34397,2617.9,2617.8,1.38]
[1729652889895,0.34397,2617.9,2617.8,4.5878]
[1729652893296,0.34397,2617.9,2617.8,1.38]
[1729652893693,0.34397,2617.9,2617.8,4.5878]
[1729652893991,4.31260238,2618.1,2617.8,4.5878]
[1729652894194,4.65654238,2618.1,2618.0,1.38]
[1729652895892,4.31260238,2618.1,2618.0,1.38]
[1729652896094,0.34394,2618.2,2618.1,0.34394]
[1729652896293,3.2078,2618.6,2618.3,0.34392]
[1729652896294,0.34391,2618.4,2618.3,0.34392]
[1729652896489,0.34391,2618.4,2618.3,1.72392]
[1729652896690,4.4262613,2618.4,2618.3,1.72392]
[1729652896992,4.4262613,2618.4,2618.3,1.38]
[1729652901295,0.34389,2618.6,2618.4,0.3439]
[1729652901603,4.66279782,2618.6,2618.5,1.7893]
[1729652901791,4.31891782,2618.6,2618.5,1.7893]
[1729652901992,4.31891782,2618.6,2618.5,2.13319]
[1729652903090,4.31891782,2618.6,2618.5,2.52639]
[1729652903997,4.31891782,2618.6,2618.5,2.93489]
[1729652904192,4.31891782,2618.6,2618.5,8.13409]
[1729652904394,0.4064,2619.0,2618.5,7.7902]
[1729652904592,0.75023,2619.0,2618.9,1.38]
[1729652904995,5.13265154,2619.0,2618.9,1.38]
[1729652907895,4.72625154,2619.0,2618.9,1.38]
[1729652908096,4.72625154,2619.0,2618.9,1.806]
[1729652909799,4.38242154,2619.0,2618.9,5.6244]
[1729652910006,0.34381,2619.2,2619.0,0.34382]
[1729652910296,0.34381,2619.2,2618.9,6.0411]
[1729652910297,0.3438,2619.2,2619.1,4.9833]
[1729652915404,0.3438,2619.2,2619.1,1.7755]
[1729652915598,0.3438,2619.2,2619.1,4.9833]
[1729652918201,0.3438,2619.2,2619.1,1.7755]
[1729652919314,0.3438,2619.2,2619.1,4.9833]
[1729652920212,0.3438,2619.2,2619.1,1.7755]
[1729652920710,0.3438,2619.2,2619.1,4.9833]
[1729652921598,0.3438,2619.2,2619.1,1.7755]
[1729652922007,0.3438,2619.2,2619.1,4.9833]
[1729652925417,0.3438,2619.2,2619.1,1.7755]
[1729652925915,0.3438,2619.2,2619.1,4.9833]
[1729652928713,0.3438,2619.2,2619.1,1.7755]
[1729652929015,0.3438,2619.2,2619.1,4.9833]
[1729652929715,0.3438,2619.2,2619.1,1.7755]
[1729652930215,0.3438,2619.2,2619.1,5.32711]
[1729652933620,0.3438,2619.2,2619.1,4.9833]
[1729652933818,0.3438,2619.2,2619.1,5.32711]
[1729652935616,0.3438,2619.2,2619.1,2.11931]
[1729652936413,0.3438,2619.2,2619.1,5.32711]
[1729652936712,0.3438,2619.2,2619.1,9.14551]
[1729652938011,0.3438,2619.3,2619.2,0.34379]
[1729652938213,0.3438,2619.3,2619.2,1.72379]
[1729652938521,0.3438,2619.3,2619.2,5.54139]
[1729652940615,0.3438,2619.3,2619.2,5.1976]
[1729652941222,0.3438,2619.3,2619.2,5.5414]
[1729652942415,0.3438,2619.3,2619.2,8.4054]
[1729652943218,0.3438,2619.3,2619.2,4.5878]
[1729652945819,0.3438,2619.3,2619.2,1.38]
[1729652946023,0.3438,2619.3,2619.2,4.5878]
[1729652946825,0.3438,2619.3,2619.2,1.38]
[1729652947020,0.3438,2619.3,2619.2,4.5878]
[1729652947418,0.3438,2619.3,2619.2,3.2078]
[1729652947727,0.3438,2619.3,2619.2,4.5878]
[1729652948626,0.3438,2619.3,2619.2,3.2078]
[1729652948820,0.3438,2619.3,2619.2,4.5878]
[1729652949418,0.3438,2619.3,2619.2,1.38]
[1729652956830,0.3438,2619.3,2619.2,1.7238]
[1729652957331,1.15888,2619.4,2619.3,0.34379]
[1729652957519,1.15888,2619.4,2619.3,1.72379]
[1729652957725,5.17353286,2619.4,2619.3,1.72379]
[1729652959428,5.17353286,2619.4,2619.3,4.93159]
[1729652960135,0.76878,2619.4,2619.3,4.93159]
[1729652960331,0.425,2619.4,2619.3,4.93159]
[1729652960725,0.76877,2619.4,2619.3,4.93159]
[1729652961529,0.76877,2619.4,2619.3,5.35819]
[1729652962539,0.425,2619.4,2619.3,5.35819]
[1729652962928,0.425,2619.4,2619.3,2.15039]
[1729652963137,0.76877,2619.4,2619.3,5.35819]
[1729652963733,0.76877,2619.4,2619.3,2.15039]
[1729652963939,0.425,2619.4,2619.3,5.35819]
[1729652964138,0.34377,2619.5,2619.4,0.34377]